fUSD/lending_fUSD_20250407
["ID","MTS","AMOUNT","RATE_DAILY","PERIOD"]
[357400801,1744044641803,-1164.85,0.00042257,2]
[357400803,1744044641812,-4780.62232251,0.00042336,15]
[357400805,1744044641821,-5000.0,0.000427,60]
[357400807,1744044641831,-27002.82600529,0.000427,3]
[357400809,1744044641840,-267.957047,0.000427,14]
[357400811,1744044641849,-267.957047,0.000427,14]
[357400813,1744044641858,-151.0,0.000427,14]
[357400815,1744044641867,-151.0,0.000427,14]
[357400817,1744044641876,-151.0,0.000427,14]
[357400819,1744044641886,-177.031072,0.000427,14]
[357400820,1744044641895,-177.031072,0.000427,14]
[357400822,1744044641905,-151.252334,0.000427,14]
[357400824,1744044641915,-151.252334,0.000427,14]
[357400826,1744044641924,-151.0,0.000427,14]
[357400828,1744044641934,-151.0,0.000427,14]
[357400830,1744044641943,-152.048681,0.000427,14]
[357400832,1744044641952,-152.766476,0.000427,14]
[357400834,1744044641961,-151.0,0.000427,14]
[357400836,1744044641971,-151.0,0.000427,14]
[357400838,1744044641980,-151.0,0.000427,14]
[357400840,1744044641990,-151.0,0.000427,14]
[357400842,1744044641999,-151.0,0.000427,14]
[357400844,1744044642008,-6190.236748,0.000427,14]
[357400846,1744044642018,-6190.236748,0.000427,14]
[357400848,1744044642027,-151.0,0.000427,14]
[357400850,1744044642037,-151.0,0.000427,14]
[357400852,1744044642046,-151.0,0.000427,14]
[357400854,1744044642058,-151.0,0.000427,14]
[357400856,1744044642068,-151.0,0.000427,14]
[357400859,1744044642078,-151.0,0.000427,14]
[357400860,1744044642088,-151.0,0.0004278,14]
[357400862,1744044642097,-152.751073,0.0004278,14]
[357400864,1744044642106,-151.0,0.0004278,14]
[357400866,1744044642115,-151.0,0.0004278,14]
[357400868,1744044642125,-271.298567,0.0004278,14]
[357400870,1744044642135,-151.0,0.0004278,14]
[357400872,1744044642144,-423.497124,0.0004278,14]
[357400874,1744044642153,-423.497124,0.0004278,14]
[357400876,1744044642163,-577.396939,0.0004278,14]
[357400878,1744044642172,-349.011164,0.0004278,14]
[357400880,1744044642181,-349.011164,0.0004278,14]
[357400882,1744044642191,-151.0,0.0004278,14]
[357400884,1744044642201,-185.529144,0.0004278,14]
[357400886,1744044642210,-151.0,0.0004278,14]
[357400888,1744044642220,-151.0,0.0004278,14]
[357400890,1744044642229,-151.0,0.0004278,14]
[357400892,1744044642239,-151.0,0.0004278,14]
[357400894,1744044642249,-151.0,0.0004278,14]
[357400896,1744044642259,-151.0,0.0004278,14]
[357400898,1744044642268,-1520.882429,0.0004278,14]
[357400900,1744044642277,-1520.882429,0.0004278,14]
[357400902,1744044642287,-1011.528121,0.0004278,14]
[357400904,1744044642296,-151.0,0.0004278,14]
[357400906,1744044642305,-151.0,0.0004278,14]
[357400908,1744044642315,-151.0,0.0004278,14]
[357400910,1744044642325,-151.0,0.0004278,14]
[357400912,1744044642335,-151.0,0.0004278,14]
[357400914,1744044642345,-151.0,0.0004278,14]
[357400916,1744044642354,-151.0,0.0004278,14]
[357400918,1744044642364,-151.0,0.0004278,14]
[357400920,1744044642375,-151.0,0.0004278,14]
[357400922,1744044642384,-323.235089,0.0004278,14]
[357400924,1744044642394,-323.235089,0.0004278,14]
[357400926,1744044642404,-298.908777,0.0004278,14]
[357400928,1744044642414,-151.0,0.0004278,14]
[357400930,1744044642423,-250.989316,0.0004278,14]
[357400932,1744044642432,-250.989316,0.0004278,14]
[357400934,1744044642442,-240.228683,0.0004278,14]
[357400935,1744044642451,-151.0,0.0004278,14]
[357400937,1744044642462,-240.228683,0.0004278,14]
[357400939,1744044642472,-9886.99100085,0.00042783,3]
[357400941,1744044642482,-151.33,0.00042784,2]
[357400943,1744044642492,-151.0,0.00042784,14]
[357400945,1744044642502,-151.0,0.00042784,14]
[357400947,1744044642512,-151.0,0.00042784,14]
[357400949,1744044642522,-151.0,0.00042784,14]
[357400951,1744044642531,-167.872011,0.00042784,14]
[357400953,1744044642540,-167.872011,0.00042784,14]
[357400955,1744044642550,-151.0,0.00042784,14]
[357400957,1744044642559,-295.278365,0.00042784,14]
[357400959,1744044642568,-151.0,0.00042784,14]
[357400961,1744044642578,-295.278365,0.00042784,14]
[357400963,1744044642588,-194.2,0.0004279,2]
[357400965,1744044642597,-175.0,0.00042793,2]
[357400967,1744044642607,-12276.30513391,0.00042794,2]
[357400969,1744044642616,-4943.15498957,0.00042794,7]
[357400971,1744044642630,-5237.89372758,0.00042794,4]
[357400973,1744044642639,-5176.63315784,0.00042794,4]
[357400975,1744044642649,-2490.54511093,0.00042794,20]
[357400977,1744044642659,-305.66110645,0.00042794,14]
[357400979,1744044642669,-150.0,0.00042794,14]
[357400981,1744044642678,-299.64174531,0.00042794,2]
[357400983,1744044642688,-151.0,0.00042794,14]
[357400985,1744044642697,-151.0,0.00042794,14]
[357400987,1744044642707,-194.93215,0.00042794,14]
[357400989,1744044642716,-151.0,0.00042794,14]
[357400991,1744044642726,-151.0,0.00042794,14]
[357400993,1744044642735,-151.0,0.00042794,14]
[357400995,1744044642743,-151.0,0.00042794,14]
[357400997,1744044642753,-2000.0,0.00042795,30]
[357400999,1744044642762,-176.55065,0.00042795,72]
[357401000,1744044642771,-200.0,0.00042795,7]
[357401002,1744044642781,-4780.62232251,0.00043163,15]
[357401004,1744044642790,-151.0,0.00043193,14]
[357401006,1744044642800,-151.0,0.00043193,14]
[357401009,1744044642809,-248.738209,0.00043193,14]
[357401011,1744044642819,-151.0,0.00043193,14]
[357401014,1744044642829,-166.112122,0.00043193,14]
[357401017,1744044642838,-203.78,0.00043245,120]
[357401020,1744044642848,-2000.0,0.00043252,4]
[357401023,1744044642858,-176.55065,0.000434,74]
[357401026,1744044642867,-156.95,0.00043626,120]
[357401030,1744044642877,-151.0,0.00043626,14]
[357401034,1744044642887,-151.0,0.00043626,14]
[357401037,1744044642897,-151.0,0.00043626,14]
[357401040,1744044642906,-151.0,0.00043626,14]
[357401043,1744044642915,-6190.236748,0.00043626,14]
[357401045,1744044642925,-6190.236748,0.00043626,14]
[357401047,1744044642934,-151.0,0.0004398,14]
[357401049,1744044642943,-151.0,0.0004398,14]
[357401050,1744044642953,-228.835702,0.0004398,14]
[357401052,1744044642962,-4780.62232251,0.0004399,15]
[357401054,1744044642972,-151.0,0.0004399,14]
[357401056,1744044642981,-151.0,0.0004399,14]
[357401058,1744044642991,-151.0,0.00043994,14]
[357401060,1744044643000,-151.0,0.00043994,14]
[357401079,1744044643170,-9886.99100085,0.00043994,3]
[357401081,1744044643180,-7950.82241793,0.00043994,3]
[357401083,1744044643190,-250.0,0.00044,2]
[357401084,1744044643200,-157.348586,0.00044004,14]
[357401086,1744044643209,-151.0,0.00044004,14]
[357401088,1744044643219,-151.0,0.00044004,14]
[357401090,1744044643228,-1520.882429,0.00044004,14]
[357401092,1744044643238,-1520.882429,0.00044004,14]
[357401094,1744044643247,-151.0,0.00044004,14]
[357401096,1744044643257,-151.0,0.00044004,14]
[357401098,1744044643267,-151.0,0.00044004,14]
[357401100,1744044643276,-323.235089,0.00044004,14]
[357401102,1744044643286,-323.235089,0.00044004,14]
[357401104,1744044643296,-151.0,0.00044004,14]
[357401106,1744044643306,-250.989316,0.00044004,14]
[357401108,1744044643315,-250.989316,0.00044004,14]
[357401110,1744044643326,-240.228683,0.00044004,14]
[357401112,1744044643335,-240.228683,0.00044004,14]
[357401114,1744044643344,-308.64,0.00044239,2]
[357401116,1744044643354,-1164.85,0.00044521,2]
[357401118,1744044643363,-176.55065,0.0004465,76]
[357401120,1744044643372,-4780.62232251,0.00044817,15]
[357401122,1744044643382,-167.872011,0.00044834,14]
[357401124,1744044643391,-167.872011,0.00044834,14]
[357401126,1744044643400,-151.0,0.00044834,14]
[357401128,1744044643410,-7950.82241793,0.00044847,3]
[357401130,1744044643419,-2531.0,0.00044856,7]
[357401131,1744044643428,-1000.0,0.00044857,2]
[357401133,1744044643437,-151.0,0.00044857,14]
[357401135,1744044643447,-151.0,0.00044857,14]
[357401137,1744044643456,-295.278365,0.00044857,14]
[357401139,1744044643466,-295.278365,0.00044857,14]
[357401141,1744044643476,-500.0,0.00045,120]
[357401144,1744044643486,-151.0,0.00045228,14]
[357401146,1744044643496,-151.0,0.00045228,14]
[357401148,1744044643505,-1011.528121,0.00045228,14]
[357401151,1744044643515,-9886.99100085,0.00045452,3]
[357401154,1744044643525,-2000.0,0.00045502,8]
[357401157,1744044643535,-4780.62232251,0.00045643,15]
[357401160,1744044643544,-151.0,0.00045732,14]
[357401163,1744044643553,-151.0,0.00045732,14]
[357401164,1744044643562,-151.0,0.00045732,14]
[357401165,1744044643572,-423.497124,0.00045732,14]
[357401166,1744044643581,-423.497124,0.00045732,14]
[357401167,1744044643591,-577.396939,0.00045732,14]
[357401169,1744044643601,-349.011164,0.00045732,14]
[357401171,1744044643611,-349.011164,0.00045732,14]
[357401173,1744044643620,-151.0,0.00045732,14]
[357401175,1744044643633,-151.0,0.00045732,14]
[357401177,1744044643646,-151.0,0.00045732,14]
[357401179,1744044643655,-151.0,0.00045732,14]
[357401181,1744044643666,-151.0,0.00045732,14]
[357401183,1744044643675,-151.0,0.00045732,14]
[357401186,1744044643686,-400.0,0.000458,16]
[357401187,1744044643695,-7950.82241793,0.0004589,3]
[357401190,1744044643705,-800.0,0.000459,16]
[357401192,1744044643715,-176.55066,0.000459,79]
[357401194,1744044643725,-277.24,0.00045912,120]
[357401196,1744044643734,-150.0,0.00045927,2]
[357401198,1744044643744,-1000.0,0.00046,120]
[357401200,1744044643753,-2439.76541973,0.00046,2]
[357401202,1744044643763,-267.957047,0.00046,14]
[357401204,1744044643772,-267.957047,0.00046,14]
[357401206,1744044643781,-177.031072,0.00046,14]
[357401208,1744044643791,-177.031072,0.00046,14]
[357401210,1744044643800,-151.252334,0.00046,14]
[357401212,1744044643810,-151.252334,0.00046,14]
[357401214,1744044643819,-151.0,0.00046,14]
[357401216,1744044643828,-151.0,0.00046,14]
[357401218,1744044643838,-151.0,0.00046,14]
[357401220,1744044643847,-6190.236748,0.00046,14]
[357401222,1744044643856,-6190.236748,0.00046,14]
[357401224,1744044643865,-9886.99100085,0.00046058,3]
[357401226,1744044643876,-7950.82241793,0.00046058,3]
[357401228,1744044643885,-151.0,0.00046058,14]
[357401230,1744044643894,-151.0,0.00046058,14]
[357401232,1744044643903,-14264.84773913,0.00046068,2]
[357401234,1744044643913,-9886.99100085,0.0004614,3]
[357401236,1744044643922,-7950.82241793,0.0004614,3]
[357401238,1744044643931,-1285.0,0.0004615,2]
[357401240,1744044643941,-574.193,0.0004615,2]
[357401242,1744044643950,-2043.0,0.0004615,2]
[357401244,1744044643960,-1325.0,0.0004615,2]
[357401246,1744044643969,-908.0,0.0004615,2]
[357401248,1744044643978,-1434.0,0.0004615,2]
[357401250,1744044643987,-1277.0,0.0004615,2]
[357401252,1744044643997,-790.0,0.0004615,2]
[357401254,1744044644006,-543.0,0.0004615,2]
[357401256,1744044644015,-4095.0,0.0004615,2]
[357401258,1744044644026,-349.529,0.0004615,2]
[357401260,1744044644035,-151.0,0.0004615,2]
[357401262,1744044644045,-1119.0,0.0004615,2]
[357401264,1744044644056,-150.0,0.0004615,2]
[357401266,1744044644065,-150.0,0.0004615,2]
[357401268,1744044644074,-151.0,0.0004615,14]
[357401270,1744044644083,-151.0,0.0004615,14]
[357401272,1744044644093,-151.0,0.0004615,14]
[357401274,1744044644102,-151.0,0.0004615,14]
[357401276,1744044644111,-151.0,0.0004615,14]
[357401278,1744044644120,-150.0,0.00046228,2]
[357401280,1744044644131,-150.0,0.00046253,2]
[357401282,1744044644140,-151.0,0.0004628,14]
[357401284,1744044644149,-151.0,0.0004628,14]
[357401286,1744044644159,-151.0,0.0004628,14]
[357401288,1744044644168,-323.235089,0.0004628,14]
[357401290,1744044644178,-323.235089,0.0004628,14]
[357401292,1744044644187,-267.82782,0.0004628,14]
[357401294,1744044644196,-250.989316,0.0004628,14]
[357401295,1744044644206,-250.989316,0.0004628,14]
[357401297,1744044644215,-240.228683,0.0004628,14]
[357401299,1744044644224,-240.228683,0.0004628,14]
[357401301,1744044644234,-9886.99100085,0.0004628,3]
[357401303,1744044644243,-7950.82241793,0.0004628,3]
[357401305,1744044644252,-151.0,0.0004629,14]
[357401307,1744044644261,-151.0,0.0004629,14]
[357401309,1744044644270,-423.497124,0.0004629,14]
[357401311,1744044644279,-423.497124,0.0004629,14]
[357401313,1744044644288,-577.396939,0.0004629,14]
[357401315,1744044644297,-577.396939,0.0004629,14]
[357401317,1744044644307,-349.011164,0.0004629,14]
[357401319,1744044644315,-349.011164,0.0004629,14]
[357401321,1744044644325,-151.0,0.0004629,14]
[357401323,1744044644334,-151.0,0.0004629,14]
[357401325,1744044644342,-151.0,0.0004629,14]
[357401327,1744044644351,-261.040501,0.0004629,14]
[357401329,1744044644361,-1520.882429,0.0004629,14]
[357401331,1744044644370,-1520.882429,0.0004629,14]
[357401333,1744044644380,-1011.528121,0.0004629,14]
[357401335,1744044644390,-151.0,0.0004629,14]
[357401338,1744044644399,-151.0,0.0004629,14]
[357401340,1744044644409,-151.0,0.0004629,14]
[357401342,1744044644418,-7950.82241793,0.0004629,3]
[357401344,1744044644428,-151.0,0.0004629,14]
[357401346,1744044644437,-150.0,0.00046299,2]
[357401347,1744044644446,-151.0,0.000463,14]
[357401349,1744044644455,-151.0,0.000463,14]
[357401351,1744044644464,-151.0,0.000463,14]
[357401354,1744044644474,-151.0,0.000463,14]
[357401356,1744044644484,-151.0,0.000463,14]
[357401358,1744044644494,-151.0,0.000463,14]
[357401360,1744044644504,-423.497124,0.000463,14]
[357401362,1744044644513,-423.497124,0.000463,14]
[357401364,1744044644523,-577.396939,0.000463,14]
[357401366,1744044644532,-577.396939,0.000463,14]
[357401367,1744044644541,-349.011164,0.000463,14]
[357401369,1744044644550,-349.011164,0.000463,14]
[357401371,1744044644559,-151.0,0.000463,14]
[357401374,1744044644569,-267.957047,0.000463,14]
[357401376,1744044644579,-267.957047,0.000463,14]
[357401377,1744044644588,-151.0,0.000463,14]
[357401379,1744044644598,-151.0,0.000463,14]
[357401381,1744044644608,-151.0,0.000463,14]
[357401383,1744044644619,-151.0,0.000463,14]
[357401385,1744044644632,-151.0,0.000463,14]
[357401387,1744044644648,-151.0,0.000463,14]
[357401389,1744044644657,-177.031072,0.000463,14]
[357401392,1744044644667,-177.031072,0.000463,14]
[357401394,1744044644678,-151.252334,0.000463,14]
[357401396,1744044644688,-151.252334,0.000463,14]
[357401398,1744044644698,-1520.882429,0.000463,14]
[357401399,1744044644707,-1520.882429,0.000463,14]
[357401402,1744044644720,-1011.528121,0.000463,14]
[357401403,1744044644730,-151.0,0.000463,14]
[357401405,1744044644740,-207.993532,0.000463,14]
[357401407,1744044644749,-151.0,0.000463,14]
[357401409,1744044644758,-151.0,0.000463,14]
[357401411,1744044644767,-167.872011,0.000463,14]
[357401413,1744044644777,-167.872011,0.000463,14]
[357401415,1744044644786,-151.0,0.000463,14]
[357401417,1744044644795,-295.278365,0.000463,14]
[357401420,1744044644805,-295.278365,0.000463,14]
[357401421,1744044644815,-151.0,0.000463,14]
[357401424,1744044644825,-151.0,0.000463,14]
[357401426,1744044644835,-151.0,0.000463,14]
[357401428,1744044644846,-6190.236748,0.000463,14]
[357401430,1744044644855,-6190.236748,0.000463,14]
[357401432,1744044644865,-150.0,0.00046306,2]
[357401433,1744044644875,-150.0,0.0004633,2]
[357401435,1744044644884,-150.0,0.00046373,2]
[357401437,1744044644893,-336.2236471,0.000464,22]
[357401439,1744044644903,-172.10391323,0.000464,23]
[357401441,1744044644912,-150.0,0.00046446,2]
[357401443,1744044644921,-151.0,0.00046456,14]
[357401445,1744044644931,-151.0,0.00046456,14]
[357401447,1744044644940,-151.0,0.00046456,14]
[357401449,1744044644949,-158.263522,0.00046456,14]
[357401451,1744044644958,-9886.99100085,0.0004646,3]
[357401453,1744044644968,-4780.62232251,0.0004647,15]
[357401455,1744044644977,-151.33,0.0004647,2]
[357401457,1744044644987,-610.3522,0.00046474,10]
[357401459,1744044644996,-151.0,0.0004648,14]
[357401461,1744044645005,-151.0,0.0004648,14]
[357401463,1744044645015,-187.426937,0.0004648,14]
[357401465,1744044645025,-323.235089,0.0004648,14]
[357401467,1744044645035,-323.235089,0.0004648,14]
[357401469,1744044645044,-151.0,0.0004648,14]
[357401471,1744044645054,-250.989316,0.0004648,14]
[357401473,1744044645065,-250.989316,0.0004648,14]
[357401475,1744044645074,-240.228683,0.0004648,14]
[357401477,1744044645083,-240.228683,0.0004648,14]
[357401479,1744044645092,-151.0,0.0004648,14]
[357401481,1744044645102,-6190.236748,0.0004648,14]
[357401483,1744044645111,-6190.236748,0.0004648,14]
[357401485,1744044645120,-151.0,0.0004648,14]
[357401487,1744044645132,-151.0,0.0004648,14]
[357401489,1744044645142,-9886.99100085,0.0004648,3]
[357401492,1744044645151,-15901.6448359,0.0004648,3]
[357401494,1744044645161,-306.50793992,0.0004648,7]
[357401496,1744044645170,-150.0,0.00046483,2]
[357401498,1744044645180,-9886.99100085,0.00046489,3]
[357401499,1744044645190,-7950.82241793,0.00046489,3]
[357401501,1744044645199,-202.990874,0.00046489,14]
[357401504,1744044645209,-151.0,0.0004649,14]
[357401505,1744044645219,-151.0,0.0004649,14]
[357401507,1744044645228,-151.0,0.0004649,14]
[357401509,1744044645237,-423.497124,0.0004649,14]
[357401511,1744044645247,-423.497124,0.0004649,14]
[357401514,1744044645256,-423.497124,0.0004649,14]
[357401516,1744044645266,-423.497124,0.0004649,14]
[357401518,1744044645275,-577.396939,0.0004649,14]
[357401520,1744044645284,-577.396939,0.0004649,14]
[357401522,1744044645294,-577.396939,0.0004649,14]
[357401524,1744044645304,-577.396939,0.0004649,14]
[357401525,1744044645313,-349.011164,0.0004649,14]
[357401527,1744044645323,-349.011164,0.0004649,14]
[357401529,1744044645332,-349.011164,0.0004649,14]
[357401532,1744044645341,-349.011164,0.0004649,14]
[357401533,1744044645351,-151.0,0.0004649,14]
[357401535,1744044645360,-151.0,0.0004649,14]
[357401537,1744044645369,-267.957047,0.0004649,14]
[357401539,1744044645382,-267.957047,0.0004649,14]
[357401541,1744044645392,-267.957047,0.0004649,14]
[357401543,1744044645401,-267.957047,0.0004649,14]
[357401545,1744044645411,-151.0,0.0004649,14]
[357401547,1744044645421,-151.0,0.0004649,14]
[357401549,1744044645431,-151.0,0.0004649,14]
[357401551,1744044645440,-151.0,0.0004649,14]
[357401553,1744044645449,-151.0,0.0004649,14]
[357401555,1744044645459,-151.0,0.0004649,14]
[357401557,1744044645469,-151.0,0.0004649,14]
[357401559,1744044645480,-151.0,0.0004649,14]
[357401561,1744044645490,-151.0,0.0004649,14]
[357401563,1744044645500,-151.0,0.0004649,14]
[357401565,1744044645510,-151.0,0.0004649,14]
[357401582,1744044645678,-177.031072,0.0004649,14]
[357401584,1744044645688,-177.031072,0.0004649,14]
[357401586,1744044645698,-177.031072,0.0004649,14]
[357401588,1744044645709,-177.031072,0.0004649,14]
[357401590,1744044645719,-151.252334,0.0004649,14]
[357401592,1744044645728,-151.252334,0.0004649,14]
[357401594,1744044645738,-151.252334,0.0004649,14]
[357401596,1744044645747,-151.252334,0.0004649,14]
[357401598,1744044645756,-1520.882429,0.0004649,14]
[357401600,1744044645765,-1520.882429,0.0004649,14]
[357401602,1744044645775,-1011.528121,0.0004649,14]
[357401604,1744044645784,-1011.528121,0.0004649,14]
[357401606,1744044645793,-1011.528121,0.0004649,14]
[357401608,1744044645803,-151.0,0.0004649,14]
[357401610,1744044645812,-151.0,0.0004649,14]
[357401612,1744044645821,-151.0,0.0004649,14]
[357401614,1744044645831,-151.0,0.0004649,14]
[357401616,1744044645840,-167.872011,0.0004649,14]
[357401618,1744044645850,-167.872011,0.0004649,14]
[357401620,1744044645860,-151.0,0.0004649,14]
[357401622,1744044645869,-151.0,0.0004649,14]
[357401623,1744044645880,-151.0,0.0004649,14]
[357401626,1744044645890,-295.278365,0.0004649,14]
[357401628,1744044645899,-295.278365,0.0004649,14]
[357401631,1744044645909,-151.0,0.0004649,14]
[357401634,1744044645919,-168078.847014,0.0004649,3]
[357401637,1744044645928,-198770.560448,0.0004649,3]
[357401639,1744044645938,-423.223858,0.0004649,120]
[357401641,1744044645948,-708.64844406,0.0004649,30]
[357401643,1744044645957,-694.41,0.00046498,120]
[357401645,1744044645967,-1000.0,0.00046498,120]
[357401647,1744044645976,-150.0,0.00046498,2]
[357401649,1744044645985,-1000.0,0.00046499,2]
[357401651,1744044645995,-1000.0,0.00046499,2]
[357401653,1744044646004,-1000.0,0.00046499,2]
[357401655,1744044646013,-214.77809787,0.00046499,30]
[357401657,1744044646023,-1000.0,0.00046499,2]
[357401659,1744044646032,-1000.0,0.00046499,2]
[357401661,1744044646042,-344.39614602,0.00046499,30]
[357401663,1744044646051,-1000.0,0.00046499,2]
[357401665,1744044646060,-151.0,0.00046499,14]
[357401667,1744044646069,-255.907863,0.00046499,14]
[357401668,1744044646079,-323.235089,0.00046499,14]
[357401670,1744044646088,-323.235089,0.00046499,14]
[357401672,1744044646097,-151.0,0.00046499,14]
[357401674,1744044646107,-250.989316,0.00046499,14]
[357401677,1744044646116,-250.989316,0.00046499,14]
[357401678,1744044646128,-240.228683,0.00046499,14]
[357401680,1744044646138,-240.228683,0.00046499,14]
[357401682,1744044646147,-151.0,0.00046499,14]
[357401684,1744044646157,-6190.236748,0.00046499,14]
[357401686,1744044646167,-6190.236748,0.00046499,14]
[357401689,1744044646178,-151.0,0.00046499,14]
[357401690,1744044646188,-151.0,0.00046499,14]
[357401692,1744044646199,-500.0,0.000465,120]
[357401694,1744044646208,-95688.8615365,0.000465,2]
[357401698,1744044646238,-5715.12740809,0.000465,2]
[357401701,1744044646249,-1549.73880002,0.000465,2]
[357401703,1744044646260,-774.42425797,0.000465,2]
[357401706,1744044646287,-7764.3617255,0.000465,2]
[357401709,1744044646299,-503.42338809,0.000465,2]
[357401711,1744044646311,-5110.855,0.000465,2]
[357401807,1744044647255,-250.59001464,0.00037563,2]
[357401809,1744044647265,-219.90967289,0.00046475,2]
[357401811,1744044647274,-133967.00355996,0.000465,2]
[357401918,1744044648588,-315.39523152,0.00042579,6]
[357401920,1744044648598,-105206.47997306,0.000465,2]
[357401968,1744044649070,-200.0,0.00043754,2]
[357401970,1744044649079,-150.0,0.0004615,2]
[357401972,1744044649088,-38.96681547,0.0004615,2]
[357401982,1744044649184,-111.03318453,0.0004615,2]
[357401984,1744044649194,-817.76684047,0.000465,2]
[357401986,1744044649206,-1780.05691885,0.000465,2]
[357402006,1744044649401,-43886.7439014,0.000465,2]
[357402052,1744044649842,-943.07654244,0.00043626,7]
[357402548,1744044759911,1927.1,0.00033,120]
[357402549,1744044780095,10000.0,0.00033,120]
[357402550,1744044785066,10000.0,0.00033,120]
[357402551,1744044790999,7829.33,0.00033,120]
[357402554,1744045132838,150.0,0.00042791,30]
[357402556,1744045630139,-2447.32741164,0.00028072,2]
[357402557,1744045630165,-679.23744055,0.00028115,2]
[357402558,1744045633094,-328.03405112,0.00028115,2]
[357402559,1744045633130,-2947.30388522,0.00028115,2]
[357402560,1744045633152,-250.0,0.00028172,2]
[357402561,1744045633173,-342.74437299,0.00028172,2]
[357402562,1744045633195,-250.0,0.00029513,2]
[357402563,1744045633217,-250.0,0.00029514,2]
[357402564,1744045633240,-36.40207373,0.000299,2]
[357402565,1744045750179,-166.89,0.00026849,2]
[357402566,1744045753072,-270.0762106,0.000299,2]
[357402567,1744045755401,158.02,0.00013699,2]
[357402568,1744045755655,158.02,0.00027397,2]
[357402569,1744045765754,-193.52171567,0.000299,2]
[357402570,1744045765777,-160.17,0.00030607,2]
[357402571,1744045765800,-500.0,0.00030607,2]
[357402572,1744045832052,-400.0,0.00038258,2]
[357402573,1744045832063,-160.17,0.00038259,2]
[357402574,1744045832072,-150.99,0.00038259,30]
[357402575,1744045832081,-2383.21,0.00038259,2]
[357402576,1744045832091,-299.99,0.00038259,30]
[357402577,1744045832100,-311.0,0.00038259,2]
[357402578,1744045832109,-2081.85778584,0.00039299,2]
[357402579,1744045832118,-1551.32,0.00039299,2]
[357402580,1744045832127,-150.99,0.00039299,2]
[357402581,1744045832136,-1000.0,0.00039491,30]
[357402582,1744045832144,-6972.87221416,0.00039695,2]
[357402583,1744045832156,-663.65858584,0.00039695,2]
[357402584,1744045832165,-543.0,0.00039795,3]
[357402585,1744045832174,-159.61,0.00039795,2]
[357402586,1744045832183,-10000.0,0.0004,2]
[357402587,1744045832193,-427.54,0.00040074,2]
[357402588,1744045832202,-200.0,0.00040094,2]
[357402589,1744045832211,-200.0,0.00040105,7]
[357402590,1744045832221,-663.00851678,0.00040114,6]
[357402591,1744045832230,-151.0,0.00040214,14]
[357402592,1744045832239,-280.997358,0.00040214,14]
[357402593,1744045832249,-151.0,0.00040214,14]
[357402594,1744045832259,-151.0,0.00040214,14]
[357402595,1744045832268,-151.0,0.00040214,14]
[357402596,1744045832277,-151.0,0.00040214,14]
[357402597,1744045832287,-1116.86128588,0.00040284,30]
[357402598,1744045832296,-185.0,0.00040511,2]
[357402599,1744045832305,-201.49,0.00040658,120]
[357402600,1744045832316,-185.0,0.00040714,2]
[357402601,1744045832325,-560.0,0.00040882,5]
[357402602,1744045832335,-165.0,0.00041,14]
[357402603,1744045832345,-151.8,0.00041096,2]
[357402604,1744045832353,-158.02,0.00041096,2]
[357402605,1744045832363,-185.99,0.00041284,2]